{"text_format":"3","workbook":"xlsx","n_sheets":2,"sheets":["综合信息表187对","基础信息1"],"not_rendered":{"defined_names":3},"read":"whole","date_system":"1900"}

{"sheet":"综合信息表187对","index":0,"n_rows":46,"n_cols":9,"rows_kept":46,"merged":[[0,0,0,1],[1,0,1,8],[2,0,2,8],[3,0,4,0],[3,1,4,1],[3,2,4,2],[3,3,4,3],[3,4,4,4],[3,5,4,5],[3,6,4,6],[3,7,4,7],[3,8,4,8],[7,1,8,1],[7,2,8,2],[13,1,14,1],[13,2,14,2],[18,1,19,1],[26,1,27,1],[26,2,27,2],[34,1,35,1],[34,2,35,2],[40,1,41,1],[40,2,41,2],[45,0,45,1]]}
["附表"]
["加油站基本情况统计表"]
["（2026年1月）"]
["序号","路段","服务区（个）","服务区名称","桩号","加油站数量","开通时间","加油站基本情况","备注"]
[]
[1,"焦唐高速巩登段",1,"桃园服务区","K78+300",2,"2012年开通","桃园服务区加油站：位于巩登高速公路K28+300公里桃园服务区内，分东、西两区。其中,两区分别有双枪加油机6台，地埋罐6个。加油站因建站较早，油罐等设施老旧，设计工艺与当前行业标准不符，需进行全面改造。"]
[2,"盐洛高速许扶段",1,"登封停车区","K784+112",2,"2007年开通","盐洛高速登封东停车区位于大冶镇西刘碑村附近，分东、西两侧。东侧加油站油罐容量为150立方米柴油罐（3座分别50立方米）和90立方米汽油罐（3座分别30立方米），设双油品四枪潜泵式汽油机2台。西侧加油罐容量为150立方米柴油罐（3座分别50立方米)和90立方米汽油罐（3座30立方米），设双油品四枪潜泵式汽油机1台。"]
[3,"兰沈高速兰太段（开封段）",2,"西寨服务区","K30+400",2,"2025年新开通","西寨服务区位于兰太高速公路兰考至太康段K30+400米处，地处开封市杞县西寨乡境内。东区加油站总占地面积1202㎡，一层站房建筑面积160.31㎡，加油站罩棚投影面积810㎡，高8.2米，型钢结构。加油站油罐容量为2具50m³双层防渗汽油罐，2具50m³双层防渗柴油罐，总储油量200m³。双油品四枪汽油加油机2台，双枪柴油加油机4台，设卸油油气回收及分散式加油油气回收系统，预留三次油气回收系统管线。西区加油站总占地面积1201.38㎡，一层站房建筑面积160.31㎡，加油站罩棚投影面积810㎡，高8.2米，型钢结构。加油站油罐容量为2具50m³双层防渗汽油罐，2具50m³双层防渗柴油罐，总储油量200m³。双油品四枪汽油加油机2台，双枪柴油加油机4台，设卸油油气回收及分散式加油油气回收系统，预留三次油气回收系统管线。"]
[4,null,null,"板木服务区","K65+72",2,"2025年新开通","板木服务区位于兰太高速公路兰考至太康段K72+270米处，地处开封市杞县板木乡境内。东区加油站总占地面积1203.38㎡，一层站房建筑面积160.31㎡，加油站罩棚投影面积810㎡，高8.2米，型钢结构。加油站油罐容量为2具50m³双层防渗汽油罐，2具50m³双层防渗柴油罐，总储油量200m³。双油品四枪汽油加油机2台，双枪柴油加油机4台，设卸油油气回收及分散式加油油气回收系统，预留三次油气回收系统管线。西区加油站总占地面积1198.39㎡，一层站房建筑面积160.31㎡，加油站罩棚投影面积810㎡，高8.2米，型钢结构。加油站油罐容量为2具50m³双层防渗汽油罐，2具50m³双层防渗柴油罐，总储油量200m³。双油品四枪汽油加油机2台，双枪柴油加油机4台，设卸油油气回收及分散式加油油气回收系统，预留三次油气回收系统管线。"]
[5,"栾卢高速洛阳段",1,"栾川服务区","K20+300",2,"2023年新开通","栾卢高速栾川服务区位于栾川县石庙镇上园村附近，分南、北侧两侧，周边旅游资源丰富，距老君山景区约25公里，距鸡冠洞景区约18公里。南侧加油站站房建筑面积111.29平方米，罩棚投影面积434.5平方米，加油站油罐容量为60立方米柴油罐（2座分别30立方米）和60立方米汽油罐（2座分别30立方米），设双油品四枪潜泵式汽油加油机2台，双油品四枪潜泵式柴油加油机1台。北侧加油站房建筑面积153.56平方米，罩棚投影面积660平方米，加油站油罐容量为60立方米柴油罐（2座分别30立方米）和60立方米汽油罐（2座分别30立方米），设双油品四枪潜泵式汽油加油机2台，双油品四枪潜泵式柴油加油机1台。"]
[6,"沁伊高速（郑洛段）",1,"伊川东服务区","K98+800",2,"2025年新开通","伊川东服务区位于河南省洛阳市伊川县江左镇，分东区、西区两部分，江左服务区东区加油站加油罩棚为轻钢网架.投影面积:673.32m2。站房建筑面积:138.7m2。本站设1具50mSF双层柴油储罐,1具30mSF双层柴油储罐，1具50mSF双层汽油储罐,2具30mSF双层汽油储罐，总罐容190m³,折合汽油总容积为150m3。3台四枪双油品潜泵式汽油加油机和2台双枪双油品潜泵式柴油加油机。江左服务区西区加油罩棚为轻钢网架，投影面积:673.32m。站房建筑面积:138.7m。本站设1具50mSF双层柴油储罐,1具30mSF双层柴油储罐1具50mSF双层汽油储罐，2具30mSF双层汽油储罐，总罐容190m³.折合汽油总容积为150m3台四枪双油品潜泵式汽油加油机和2台双枪双油品潜泵式柴油加油机。"]
[7,"焦唐高速登汝段",1,"汝州东服务区","K147+650",2,"2016年开通","汝州东服务区位于焦桐高速K149公里处，分东、西两区对称规划设计建设，采用大、小车型分开加油模式。东区加油站房屋建筑面积124㎡，罩棚投影面积260㎡。加油站油罐容量为3×30m³柴油罐和2×30m³汽油罐。设2枪2泵汽油加油机2台，2枪2泵柴油加油机1台。地下油罐是防渗池内安装地埋双层罐。西区加油站房屋建筑面积124㎡，罩棚投影面积260㎡。加油站油罐容量为3×30m³柴油罐和2×30m³汽油罐。设2枪2泵汽油加油机2台，2枪2泵柴油加油机1台。地下油罐是防渗池内安装地埋双层罐。"]
[8,"沿太行高速安阳段",1,"太行驿站服务区","K72+200",2,"2024年新开通","沿太行高速太行驿站服务区位于林州市茶店镇茶店村附近，分东、西侧两侧。东侧加油站站房建筑面积76.4平方米，罩棚投影面积660平方米，加油站油罐容量为50立方米柴油罐（1座分别50立方米）和100立方米汽油罐（2座分别50立方米），设双油品四枪潜泵式汽油加油机2台，双油品四枪潜泵式柴油加油机1台。西侧加油站房建筑面积76.4平方米，罩棚投影面积660平方米，加油站油罐容量为50立方米柴油罐（1座分别50立方米）和100立方米汽油罐（2座分别50立方米），设双油品四枪潜泵式汽油加油机2台，双油品四枪潜泵式柴油加油机1台。"]
[9,"长修高速封修段",2,"七里营服务区","K104+481",2,"2025年新开通","七里营服务区加油站（南北区）位于河南省新乡市新乡县七里营镇南侧。南区加油站房建筑面积141.58平方米，罩棚投影面积742.33平方米，储油量190立方米，柴油50立方地埋式双层储油罐2具、汽油30立方地埋式双层储油罐3具，设2台双油品四枪汽油加油机，2台双枪柴油加油机。北区加油站房建筑面积141.58平方米，罩棚投影面积742.33平方米，储油量190立方米，柴油50立方地埋式双层储油罐2具、汽油30立方地埋式双层储油罐3具，设2台双油品四枪汽油加油机，2台双枪柴油加油机。"]
[10,null,null,"封丘西服务区","K59+10",2,"2025年新开通","封丘西服务区加油站（南北区）位于新乡市封丘县应举镇闫小寨村附近。南区加油站房建筑面积141.58平方米，罩棚投影面积742.33平方米，储油量190立方米，柴油50立方地埋式双层储油罐2具、汽油30立方地埋式双层储油罐3具，设2台双油品四枪汽油加油机，2台双枪柴油加油机。北区加油站房建筑面积141.58平方米，罩棚投影面积742.33平方米，储油量190立方米，柴油50立方地埋式双层储油罐2具、汽油30立方地埋式双层储油罐3具，设2台双油品四枪汽油加油机，2台双枪柴油加油机。"]
[11,"郑云高速武云段",1,"云台山服务区","K62+500",2,"2016年开通","云台山服务区位于郑云高速公路K62+500公里处，分东、西两区对称规划设计建设。两区有涵洞互通。                                               \n东区加油站站房建筑面积约192.2m²，西区加油站站房建筑面积约192.2㎡。\n（备注：服务区两区加油站未开业，与相关人员联系，具体数值不详。）"]
[12,"沿太行高速焦济段",1,"神农山服务区","k217+083",1,"2025年新开通","神农山服务区位于焦作沁阳神农山景区附近，为开放式服务区，建筑包括站房和加油罩棚，总建筑面积433.56平方米，其中站房面积153.56平方米，加油罩棚投影面积560.0平方米，加油站油罐容量为2具30立方米柴油罐和2具30立方米汽油罐，四枪双油品潜泵式汽油加油机2台，双枪双油品潜泵式柴油加油机2台。"]
[13,"沁伊高速（焦作段）",1,"孟州服务区","K32+715",2,"2025年新开通","孟州服务区位于河南省孟州市南社村附近，分东区、西区两部分，孟州服务区西区加油罩棚为轻钢网架，投影面积:673.32m2。站房建筑面积:138.7m2。本站设1具50m3双层柴油储罐,1具30m3SF双层柴油储罐，1具50m3SF双层汽油储罐，2具30m3SF双层汽油储罐，总罐容190m3,折合汽油总容积为150m。3台四枪双油品潜泵式汽油加油机和2台双枪双油品潜泵式柴油加油机。孟州服务区东区加油罩棚为轻钢网架，投影面积:673.32m?。站房建筑面积:138.7m2。3、本站设1具50mSF双层柴油储罐,1具30mSF双层柴油储罐，1具50mSF双层汽油储罐，2具30mSF双层汽油储罐，总罐容190m3,折合汽油总容积为150m了台四枪双油品潜泵式汽油加油机和2台双枪双油品潜泵式柴油加油机。"]
[14,"沿黄高速武济段",1,"嘉应观南服务区","K17+390",2,"2025年新开通","嘉应观服务区位于焦作市武陟县嘉应观乡小庄村附近，毗邻地方路X004。南区加油站房建筑面积138.7平方米，罩棚投影面积528平方米，储油量190立方米，柴油50立方地埋式双层储油罐1具、柴油30立方地埋式双层储油罐1具，汽油50立方地埋式双层储油罐1具，汽油30立方地埋式双层储油罐2具，设2台双油品四枪汽油加油机，2台双枪柴油加油机。北区加油站房建筑面积138.7平方米，罩棚投影面积528平方米，储油量190立方米，柴油50立方地埋式双层储油罐1具、柴油30立方地埋式双层储油罐1具，汽油50立方地埋式双层储油罐1具，汽油30立方地埋式双层储油罐2具，设2台双油品四枪汽油加油机，2台双枪柴油加油机。"]
[15,null,1,"温县北服务区","K68+100",2,"2025年新开通","温县北服务区位于焦作市温县黄庄镇东韩村附近，毗邻地方路马武线。南区加油站房建筑面积130平方米，罩棚投影面积1024.55平方米，储油量190立方米，柴油50立方地埋式双层储油罐1具、柴油30立方地埋式双层储油罐1具，汽油50立方地埋式双层储油罐1具，汽油30立方地埋式双层储油罐2具，设4台双油品四枪汽油加油机，2台双枪柴油加油机。北区加油站房建筑面积130平方米，罩棚投影面积1024.55平方米，储油量190立方米，柴油50立方地埋式双层储油罐1具、柴油30立方地埋式双层储油罐1具，汽油50立方地埋式双层储油罐1具，汽油30立方地埋式双层储油罐2具，设4台双油品四枪汽油加油机，2台双枪柴油加油机。"]
[16,"台辉高速豫鲁界至范县段",1,"台前服务区","K19+500",2,"2020年开通","台辉高速台前服务区位于台前县侯庙镇朱沙沃村附近，分南、北侧两侧。南侧加油站房建筑面积114.4平方米，罩棚面积622.26平方米，加油罐容量为50立方米柴油罐(1座50立方米)和110立方米汽油罐(2座30立方米、1座50立方米)，设双油品双枪潜油泵式柴油加油机1台，双油品双枪潜油泵式汽油加油机5台。北侧加油站房建筑面积114.4平方米，罩棚面积622.26平方米，加油罐容量为50立方米柴油罐(1座50立方米)和110立方米汽油罐(2座30立方米、1座50立方米)，设双油品双枪潜油泵式柴油加油机1台，双油品双枪潜油泵式汽油加油机5台。"]
[17,"濮聊高速豫鲁界段",1,"南乐东服务区","K7+550",2,"2025年新开通","南乐东服务区位于河南省濮阳市南乐县千口镇南仇庄村附近，分南区、北区两部分。南乐东服务区南区加油站加油罩棚为轻钢网架，总占地面积4753.04㎡，加油站房建筑面积225.6㎡，加油站罩棚投影面积616㎡。本站设2具50m³汽油储罐埋地卧式油罐，1具50m³柴油储罐埋地卧式油罐，设有12汽油枪，4柴油枪。南乐东服务区北区加油站加油罩棚为轻钢网架，总占地面积5403.84㎡，加油站房建筑面积225.6㎡，加油站罩棚投影面积616平方米。本站设2具50m³汽油储罐埋地卧式油罐，1具50m³柴油储罐埋地卧式油罐。，设有12汽油枪，4柴油枪。"]
[18,"许信高速许驻段（漯河段）",1,"繁城服务区","K11",2,"2023年新开通","许信高速繁城服务区位于临颍县繁城镇和庄村附近，分东西两侧。东区加油站站房140.6平方米，站棚836平方米设，双油品双枪潜泵汽油加油机两台，双油品四枪柴油加油机两台，90立方米汽油罐（30立方米3个），100立方米柴油罐（50立方米两个）。西区加油站站房140.6平方米，站棚836平方米设，双油品双枪潜泵汽油加油机两台，双油品四枪柴油加油机两台，90立方米汽油罐（30立方米3个），100立方米柴油罐（50立方米两个）"]
[19,"呼北高速灵宝至豫晋界段",1,"三门峡北服务区","K874+600",2,"2019年开通","呼北高速三门峡北服务区位于灵宝市函谷关镇老城村附近，分东、西侧两侧。东侧加油站房建筑面积148.4平方米，罩棚投影面积650平方米，加油站油罐容量为200立方米柴油罐(2座分别50立方米)和100立方米汽油罐(2座分别50立方米)，设双油品双枪潜油泵式柴油加油机3台，双油品双枪潜油泵式汽油加油机3台。西侧加油站房建筑面积148.4平方米，罩棚投影面积650平方米，加油站油罐容量为200立方米柴油罐(2座分别50立方米)和100立方米汽油罐(2座分别50立方米)，设双油品双枪潜油泵式柴油加油机3台，双油品双枪潜油泵式汽油加油机3台。"]
[20,"栾卢高速三门峡段",1,"卢氏南服务区","K70+600",2,"2023年新开通","栾卢高速卢氏南服务区位于卢氏县横涧乡大村村附近，分南、北侧两侧。南侧加油站站房建筑面积153.56平方米，罩棚投影面积660平方米，加油站油罐容量为60立方米柴油罐（2座分别30立方米）和60立方米汽油罐（2座分别30立方米），设双油品四枪潜泵式汽油加油机3台，双油品四枪潜泵式柴油加油机3台。北侧加油站房建筑面积76.38平方米，罩棚投影面积226平方米，加油站油罐容量为60立方米柴油罐（2座分别30立方米）和60立方米汽油罐（2座分别30立方米），设双油品四枪潜泵式汽油加油机1台，双油品四枪潜泵式柴油加油机1台。"]
[21,"卢洛高速豫陕界段",1,"卢氏西服务区","K108+100",2,"2025年新开通","卢氏西服务区位于卢氏县徐家湾乡，为基础功能服务区，北区加油站站房建筑面积130.01㎡，罩棚投影面积1024.55㎡，设1具50mSF双层柴油储罐,1具30mSF双层柴油储罐，1具50mSF双层汽油储罐.2具30mSF双层汽油储罐，总罐容190m³.折合汽油总容积为150m³.4台四枪双油品潜泵式汽油加油机和2台双枪双油品潜泵式柴油加油机。南区加油站站房建筑面积138.7㎡，罩棚投影面积792㎡，本站设1具50mSF双层柴油储罐,1具30mSF双层柴油储罐，1具50mSF双层汽油储罐,2具30mSF双层汽油储罐，总罐容190m³,折合汽油总容积为150m³.4台四枪双油品潜泵式汽油加油机和2台双枪双油品潜泵式柴油加油机。"]
[22,"渑淅高速栾双段",2,"老界岭服务区","K16+000",2,"2021年开通","老界岭服务区位于渑淅高速栾川至双龙段K16+000公里处，分东西两区，西区功能齐全，东区只有加油站，两区不互通。\n东区加油站综合楼建筑面积约152.05㎡，罩棚投影面积约585.56㎡。东区加油站为一级油气合建站，加油站油罐容量为2×50m³柴油罐和2×50m³汽油罐，LNG储罐容量为1×60m³，综合储量为150m³+60m³（柴油罐容积折半计入油罐总容积）。设2枪2泵汽油加油机2台，2枪2泵柴油加油机1台，2枪LNG加液机1台。地下柴、汽油罐均为双层储油罐。\n西区加油站综合楼建筑面积约152.05㎡，罩棚投影面积约1095㎡。西区加油站为一级油气合建站，加油站油罐容量为2×50m³柴油罐和2×50m³汽油罐，LNG储罐容量为1×60m³，综合储量为150m³+60m³（柴油罐容积折半计入油罐总容积）。设2枪2泵汽油加油机2台，2枪2泵柴油加油机2台，2枪LNG加液机2台。地下柴、汽油罐均为双层储油罐。"]
[23,null,null,"龙潭沟服务区","K41+128",2,"2021年开通","龙潭沟服务区位于渑淅高速栾川至双龙段K41+128公里处，分东、西两区对称规划设计建设。\n东区加油站综合楼建筑面积152.05㎡，罩棚投影面积593.5㎡。东区加油站为一级油气合建站，油罐容量为2×50m³柴油罐和2×50m³汽油罐，LNG储罐容量为60m³，综合储量为150m³+60m³（柴油罐容积折半计入油罐总容积）。设2枪2泵汽油加油机2台，2枪2泵柴油加油机1台，2枪LNG加液机1台。地下柴、汽油罐均为双层储油罐。\n西区加油站综合楼建筑面积152.05㎡，罩棚投影面积593.5㎡。东区加油站为一级油气合建站，油罐容量为2×50m³柴油罐和2×50m³汽油罐，LNG储罐容量为60m³，综合储量为150m³+60m³（柴油罐容积折半计入油罐总容积）。设2枪2泵汽油加油机2台，2枪2泵柴油加油机1台，2枪LNG加液机1台。地下柴、汽油罐均为双层储油罐。"]
[24,"渑淅高速淅川至豫鄂界段",1,"丹江湖服务区","k 69+600",2,"2025年新开通","丹江湖服务区位于南阳市淅川县仓房镇刘裴村附近，分东区、西区两部分。东区加油站房建筑面积153.52㎡，罩棚投影面积524.16㎡，加油站油罐容量为2具40m³SF双层防渗汽油罐，2具40m³SF双层防渗柴油罐，设1台双油品四枪汽油加油机，2台双油品四枪柴油加油机。西区加油站房建筑面积153.52㎡，罩棚投影面积316.16㎡，加油站油罐容量为2具40m³SF双层防渗汽油罐，2具40m³SF双层防渗柴油罐，设1台双油品四枪汽油加油机，1台双油品四枪柴油加油机。"]
[25,"沿黄高速民兰段（商丘段）",1,"民权北服务区","K18+900",2,"2025年新开通","民权北服务区位于民权县王桥镇靳庄村附近，分北区、南区两部分。北区加油站房建筑面积148.45平方米，罩棚投影面积338.00平方米，加油站油罐容量为1具50立方米SF双层柴油罐，1具50立方米SF双层汽油罐，2具30立方米SF双层汽油罐，设1台三油品四枪汽油加油机，1台双油品四枪柴汽混加油机，1台四枪柴油加油机。南区加油站房建筑面积148.45平方米，罩棚投影面积338.00平方米，加油站油罐容量为1具50立方米SF双层柴油罐，1具50立方米SF双层汽油罐，2具30立方米SF双层汽油罐，设1台三油品四枪汽油加油机，1台双油品四枪柴汽混加油机，1台四枪柴油加油机。"]
[26,"濮商高速淮固段",1,"固始服务区","K72",2,"2012年开通","固始服务区加油站：位于濮商高速公路（S21）淮固段K72公里固始服务区内，分东、西两区，两区加油站分别占地2836平方米。\n2021年对服务区加油站进行了站房及双层罐提升改造，现改造已基本完成。其中，两区分别有IC卡税控双油品双枪加油机4台，30m³卧式地埋SF双层防渗汽油罐3个，50m³卧式地埋SF双层防渗柴油罐2个。"]
[27,"淮内高速淮滨段",1,"淮滨服务区","K258+150",2,"2024年新开通","淮滨服务区位于商固高速公路K258+190公里处，分东、西两区对称规划设计建设。两区有涵洞互通。东区加油站综合楼建筑面积约140.60㎡，罩棚投影面积约886.00㎡。东区加油站为一级加油站。加油站油罐容量为2×50m³柴油罐和3×30m³汽油罐，综合储量为100m³+90m³（柴油罐容积全部计入油罐总容积）。设4枪潜油泵汽油加油机2台，2枪潜油泵柴油加油机2台。地下柴、汽油罐均为SF双层储油罐。西区加油站综合楼建筑面积约140.60㎡，罩棚投影面积约886.00㎡。西区加油站为一级加油站。加油站油罐容量为2×50m³柴油罐和3×30m³汽油罐，综合储量为100m³+90m³（柴油罐容积全部计入油罐总容积）。设4枪潜油泵汽油加油机2台，2枪潜油泵柴油加油机2台。地下柴、汽油罐均为SF双层储油罐。"]
[28,"许信高速驻信段（信阳段）",1,"邢集服务区","K159+611",2,"2022年新开通","许信高速邢集服务区位于信阳市平桥区丁庄镇附近，分东、西侧两侧。东侧加油站站房建筑面积148.4平方米，罩棚投影面积650平方米，加油站油罐容量为200立方米柴油罐（2座为50立方米）和100立方米汽油罐（3座分别38立方米），西侧加油站房建筑面积140.6平方米，罩棚投影面积836平方米，加油站油罐容量为100立方米柴油罐（2座分别50立方米）和90立方米汽油罐（3座分别30立方米），LNG加气罐容量为60立方加气罐（2座分别30立方米），设双油品四枪潜泵式汽油加油机2台，双油品四枪潜泵式柴油加油机2台，单枪LNG加液机2台。"]
[29,"阳新高速商城至豫鄂省界段",1,"金刚台服务区","K23+560",2,"2024年新开通","金刚台服务区位于河南省商城县金刚台镇，濮阳至湖北阳新高速(S21)商城至豫鄂省界K23+580处，分东、西两区对称规划设计建设。两区有涵洞互通。东区加油站站房建筑面积约141.58㎡，罩棚投影面积约725㎡， 罩棚建筑面积约312.62㎡。加油站油罐容量为2×50m³SF双层柴油罐和2×50m³SF双层汽油罐，综合储量为150m³（柴油罐容积全部计入油罐总容积），东区加油站为二级加油站。新设双油品四枪潜泵式汽油加油机2台，设双枪潜泵式柴油加油机2台，预留1台柴油尾气处理液加注机。西区加油站站房建筑面积约141.58㎡，罩棚投影面积约725㎡，罩棚建筑面积约312.62㎡。加油站油罐容量为2×50m³SF双层柴油罐和2×50m³SF双层汽油罐，综合储量为150m³（柴油罐容积全部计入油罐总容积），西区加油站为二级加油站。新设双油品四枪潜泵式汽油加油机2台，设双枪潜泵式柴油加油机2台，预留1台柴油尾气处理液加注机。"]
[30,"沿大别山高速鸡商段(豫皖省界)",2,"将军县服务区","K365+800",2,"2024年新开通","将军县服务区位于河南省信阳市新县丁李湾村，沿大别山高速鸡公山至商城（鄂豫皖界）段K70+800公里处，分南、北两区对称规划设计建设。两区有涵洞互通。\n南区加油站站房建筑面积约152.61㎡，罩棚投影面积约900㎡，罩棚建筑面积约391.84㎡。加油站油罐容量为2×50m³SF双层柴油罐和2×50m³SF双层汽油罐，综合储量为150m³（柴油罐容积全部计入油罐总容积），南区加油站为二级加油站。新设双油品四枪潜泵式汽油加油机4台，设双枪潜泵式柴油加油机2台，预留1台柴油尾气处理液加注机。\n北区加油站站房建筑面积约141.58㎡，罩棚投影面积约1071.97㎡，罩棚建筑面积约523.71㎡。加油站油罐容量为2×50m³SF双层柴油罐和2×50m³SF双层汽油罐，综合储量为150m³（柴油罐容积全部计入油罐总容积），北区加油站为二级加油站。新设双油品四枪潜泵式汽油加油机4台，设双枪潜泵式柴油加油机2台，预留1台柴油尾气处理液加注机。"]
[31,null,null,"山店（潘新）服务区","K417+525",2,"2024年新开通","山店服务区位于沿大别山高速鸡公山至商城（鄂豫皖界）段K18+525公里处。分南、北两区对称规划设计建设。两区有涵洞互通。\n南区加油站综合楼建筑面积约147.75㎡罩棚投影面积约884㎡。南区加油站二级加油站。加油站油罐容量为1×30m³和1×50m³柴油罐和2×30m³和1×50m³汽油罐，综合储量190m³（柴油罐容积全部计入油罐总容积）。设4枪4泵汽油加油机4台，4枪4泵柴油加油机2台。地下柴油、汽油罐均为SF双层储油罐。\n北区加油站综合楼建筑面积约147.75㎡罩棚投影面积约884㎡。北区加油站二级加油站。加油站油罐容量为1×30m³和1×50m³柴油罐和2×30m³和1×50m³汽油罐，综合储量190m³（柴油罐容积全部计入油罐总容积）。设4枪4泵汽油加油机4台，4枪4泵柴油加油机2台。地下柴油、汽油罐均为SF双层储油罐。"]
[32,"沿大别山高速明港至鸡公山段",1,"南湾服务区","K236",2,"2024年新开通","南湾服务区位于河南省信阳市浉河区谭家河乡界河和谭河交汇处西南角，沿大别山高速公路明港至鸡公山段K53+100处，分东、西两区不对称设计规划建设。两区有涵洞互通。\n东区加油站建设1座一层站房建筑面积60.0㎡，罩棚投影面积为576.30㎡，加油站油罐容量为2×30m³柴油罐和2×30m³汽油罐，综合储量为60m³+60m³（柴油罐容积全部计入油罐总容积）。加油站为三级加油站。设置2台双油品四枪潜泵汽油加油机，2台双油品四枪潜泵柴油加油机。地下柴、汽油罐均为双层储油罐。\n西区加油站建设1座一层站房建筑面积60.0㎡，罩棚投影面积为594.36㎡，加油站油罐容量为2×30m³柴油罐和2×30m³汽油罐，综合储量为60m³+60m³（柴油罐容积全部计入油罐总容积）。加油站为三级加油站。设置2台双油品四枪潜泵汽油加油机，2台双油品四枪潜泵柴油加油机。地下柴、汽油罐均为双层储油罐。"]
[33,"沿大别山高速明港至鸡公山段",1,"盛龙潭服务区","K196+279",2,"2024年新开通","盛龙潭服务区位于沿大别山高速明港至鸡公山段,桩号K23+200，十八口水库北侧吴家店镇聂寨村境内，分东、西两区对称规划设计建设。两区有涵洞互通。\n东区加油站建设1座一层站房建筑面积290㎡，罩棚投影面积为487㎡。加油站油罐容量为60立方米柴油罐（两座30立方柴油罐）和60立方米汽油罐（两座30立方汽油罐）。设双枪双泵汽油加油机2台，双枪双泵柴油加油机2台。\n西区加油站建设1座一层站房建筑面积290㎡，罩棚投影面积为487㎡。加油站油罐容量为60立方米柴油罐（两座30立方柴油罐）和60立方米汽油罐（两座30立方汽油罐）。设双枪双泵汽油加油机2台，双枪双泵柴油加油机2台。"]
[34,"信随(豫鄂界)高速公路",1,"平靖关停车区","K244+231",3,"2024年新开通","平靖关停车区位于信阳至随州（豫鄂界）高速公路K4+340公里处，分东、西和低区三个场区。东、西两区有人行涵洞互通，低区位于东区东侧，主要是为地方道路车辆提供加油服务。\n东场区：站内设50m³汽油储罐2台，50m³柴油储罐2台，总罐容200m³，折合总容积为150m³，设2台四枪双油品、2台双枪双油品潜油泵加油机，根据《汽车加油加气加氢站技术标准》GB50156-2021第3.0.9条要求，本站为二级加油站。站内站房占地面积55㎡，加油罩棚投影面积495.6㎡。\n西场区：站内设50m³汽油储罐2台，50m³柴油储罐2台，总罐容200m³，折合总容积为150m³，设2台四枪双油品、2台双枪双油品潜油泵加油机，根据《汽车加油加气加氢站技术标准》GB50156-2021第3.0.9条要求，本站为二级加油站。站内站房占地面积55㎡，加油罩棚投影面积495.6㎡。\n低场区：站内设50m³汽油储罐2台，50m³柴油储罐2台，总罐容200m³，折合总容积为150m³，设2台四枪双油品、2台双枪双油品潜油泵加油机，根据《汽车加油加气加氢站技术标准》GB50156-2021第3.0.9条要求，本站为二级加油站。站内站房占地面积55㎡，加油罩棚投影面积616㎡。"]
[35,"许广高速泌阳段",1,"白云山服务区","K123+200",2,"2010年开通","许广高速白云山服务区位于泌阳县县付庄乡盆付村附近，分东、西侧两侧。东侧加油站站房建筑面积90平方米，罩棚投影面积800平方米，加油站油罐容量为50立方米柴油罐和30立方米汽油罐，设双油品双枪潜泵式汽油加油机2台，双油品双枪潜泵式柴油加油机2台。北侧加油站房建筑面积90平方米，罩棚投影面积800平方米，加油站油罐容量为50立方米柴油罐和30立方米汽油罐，设双油品双枪潜泵式汽油加油机2台，双油品双枪潜泵式柴油加油机2台。"]
[36,"许信高速驻信段（驻马店段）",2,"驻马店西服务区","K111",2,"2022年新开通","许信高速驻马店西服务区位于驻马店驿城区胡庙乡陡沟村附近，分东西两侧。东区加油站站房140.6平方米，站棚836平方米设，双油品四枪潜泵汽油加油机两台，双油品四枪柴油加油机两台，油罐汽油（90立方米3个），柴油（100立方米两个）。西区同样。"]
[37,null,null,"西平西服务区","K64",2,"2023年新开通","许信高速西平西服务区位于西平县师灵镇董庄村附近，分东、西侧两侧。东侧加油站站房建筑面积140.6平方米，罩棚投影面积836平方米，加油站油罐容量为100立方米柴油罐（2座分别50立方米）和90立方米汽油罐（3座分别30立方米），LNG加气罐容量为60立方加气罐（2座分别30立方米），设双油品四枪潜泵式汽油加油机2台，双油品四枪潜泵式柴油加油机2台，单枪LNG加液机2台。西侧加油站房建筑面积140.6平方米，罩棚投影面积836平方米，加油站油罐容量为100立方米柴油罐（2座分别50立方米）和90立方米汽油罐（3座分别30立方米），LNG加气罐容量为60立方加气罐（2座分别30立方米），设双油品四枪潜泵式汽油加油机2台，双油品四枪潜泵式柴油加油机2台，单枪LNG加液机2台。"]
[38,"沿太行高速西延（济源段）",1,"九里沟服务区","K254+809",2,"2025年新开通"," 沿太行山高速公路西延项目九里沟服务区位于济源市思礼镇三教堂村附近，分东、西两侧，东区加油站房建筑面积为149.1平方米，罩棚投影面积750.0平方米，加油站油罐容量为80立方米柴油罐（2座分别40立方米）和80立方米汽油罐（2座分别40立方米），4台双油品四枪汽油加油机，2台双油品双枪柴油加油机。\n西区加油站房建筑面积为149.1平方米，罩棚1投影面积299平方米，罩棚2投影面积575平方米，加油站油罐容量为80立方米柴油罐（2座分别40立方米）和80立方米汽油罐（2座分别40立方米），4台双油品四枪汽油加油机，2台双油品双枪柴油加油机。"]
[39,"济新高速（济源段）",1,"黄河三峡服务区","K10+300",2,"2025年新开通","黄河三峡服务区位于济源市下冶镇附近，基本区东侧加油站的建筑包括房和加油罩棚，建筑面积416.96平方米，加油罩棚投影面积750.0平方米，加油站油罐容量为2具40立方米柴油罐和2具40立方米汽油罐，四枪双油品潜泵式汽油加油机3台，双枪双油品潜泵式柴油加油机2台。基本区西侧加油站的建筑包括加油罩棚，加油罩棚投影面积280.0平方米，加油站油罐容量为2具30立方米柴油罐和2具30立方米汽油罐，四枪双油品潜泵式汽油加油机1台，双枪双油品潜泵式柴油加油机1台。"]
[40,"固始至豫皖界高速",1,"安山服务区（线下）",null,1,"2025年新开通","安山服务区位于信阳市固始县陈集镇春店村附近。加油站房建筑面积195.41平方米，罩棚投影面积1030平方米，加油站油罐容量为1具50m³SF双层柴油储罐,1具30m³SF双层柴油储罐，1具50m³SF双层汽油储罐，2具30m³SF双层汽油储罐，总罐容190m³，折合汽油总容积为150m³。6台四枪双油品潜泵式汽油加油机和2台双枪双油品潜泵式柴油加油机。"]
["公司管理合计",null,40,null,null,{"$f":"SUM(F6:F45)","v":79}]

{"sheet":"基础信息1","index":1,"n_rows":210,"n_cols":14,"rows_kept":210,"hidden":true,"merged":[[0,0,0,13],[1,0,2,0],[1,1,1,5],[1,6,1,7],[1,8,1,9],[1,10,2,10],[1,11,2,11],[1,12,2,12],[1,13,2,13]]}
["交投集团所辖高速公路基础信息表（2022）"]
["序号","市域内高速公路",{"$nulls":4},"收费站",null,"现属公司",null,"划属地市公司","通车年份","划分类型","是否跨地市"]
[null,"路段名称","途经地市","起点桩号","终点桩号","里程（km）","名称","数量","公司名称","驻地"]
[1,"京港澳高速郑州段","郑州","K690+400","K711+969",{"v":22,"d":"22.000"},"航空港区站、双鹤湖站、新郑站",3,"中原郑漯分公司","许昌市区","中原高速","已通车","——","非跨地市"]
[2,"郑栾高速郑州至许昌段","郑州","K0+000","K44+440",{"v":44.44,"d":"44.440"},"侯寨站、轩辕丘站、新郑西站",3,"中原郑州分公司","郑州市区","中原高速","已通车","——","非跨地市"]
[3,"郑民高速郑州段","郑州","K0+000","K33+225",33.225,"郑庵站、姚家站",2,"中原郑开分公司","郑州中牟","中原高速","已通车","——","非跨地市"]
[4,"机场高速","郑州","K0+000","K26+532",{"v":26,"d":"26.000"},"郑州南站、机场站（北口）、机场站（南口）",3,"中原航空港分公司","郑州港区","中原高速","已通车","——","非跨地市"]
[5,"商登高速郑州东段","郑州","K152+556","K182+509",{"v":29.95,"d":"29.950"},"园博园站、新郑新区站、新村站",3,"中原航空港分公司","郑州港区","中原高速","已通车","——","跨地市"]
[6,"商登高速郑州西段","郑州","K182+509","K223+380",{"v":40.87,"d":"40.870"},"黄帝宫站、岐伯山站、超化寺站、古城县衙站",4,"中原郑州分公司","郑州市区","中原高速","已通车","——","跨地市"]
[7,"京港澳高速许昌段","许昌","K711+969","K757+123",{"v":45,"d":"45.000"},"长葛站、许昌北站、许昌站、许昌东区站",4,"中原郑漯分公司","许昌市区","中原高速","已通车","——","非跨地市"]
[8,"郑栾高速许昌段","许昌","K44+440","K82+910",{"v":38.47,"d":"38.470"},"长葛西站、禹州东站、禹州南站",3,"中原郑州分公司","郑州市区","中原高速","已通车","——","非跨地市"]
[9,"京港澳高速漯河段","漯河","K757+123","K806+123",{"v":49,"d":"49.000"},"临颍站、漯河站、漯河南站",3,"中原郑漯分公司","许昌市区","中原高速","已通车","——","非跨地市"]
[10,"京港澳高速驻马店段","驻马店","K806+123","K873+306",{"v":67.2,"d":"67.200"},"西平站、遂平站、驻马店北站、驻马店站",4,"中原驻马店分公司","驻马店市区","中原高速","已通车","——","非跨地市"]
[11,"郑栾高速平顶山段","平顶山","K82+910","K183+479",{"v":100.57,"d":"100.570"},"郏县站、平顶山西站、鲁山站、下汤站、尧山站",5,"中原平顶山分公司","平顶山宝丰","中原高速","已通车","——","非跨地市"]
[12,"郑民高速开封段","开封","K33+225","K102+000",69.835,"杏花营站、南苑站、杞县站",3,"中原郑开分公司","郑州中牟","中原高速","已通车","——","非跨地市"]
[13,"商登高速开封东段","开封","K62+028","K114+106",{"v":52.08,"d":"52.080"},"杞县南站、通许南站",2,"中原睢县分公司","商丘睢县","中原高速","已通车","——","跨地市"]
[14,"商登高速开封西段","开封","K114+106","K152+556",{"v":38.45,"d":"38.450"},"尉氏北站、岗李站",2,"中原航空港分公司","郑州港区","中原高速","已通车","——","跨地市"]
[15,"郑民高速商丘段","商丘","k102+000","k119+570",{"v":17.57,"d":"17.570"},"民权白云寺站",1,"中原郑开分公司","郑州中牟","中原高速","已通车","——","非跨地市"]
[16,"商登高速商丘段","商丘","K0+000","K62+028",{"v":62.03,"d":"62.030"},"商丘机场站、宁陵南站、睢县东站、睢县西站",4,"中原睢县分公司","商丘睢县","中原高速","已通车","——","非跨地市"]
[17,"德上高速永城段","商丘","K479+907","K536+066",{"v":56.16,"d":"56.160"},"永城站、永城东站、永城北站",3,"中原商丘分公司","商丘永城","中原高速","已通车","——","非跨地市"]
[18,"京港澳高速驻信段（驻马店段）","驻马店","K873+306",{"v":931610,"d":"K931+610"},58.304,"驻马店南站、确山站、正阳西站、明港机场站、明港站",5,"高发信阳分公司","信阳市区","驻马店公司","已通车",{"$f":"IF(LEFT(K21,LEN(K21)-2)=C21,\"市界\",\"非市界\")","v":"市界"},"跨地市"]
[19,"沪陕高速信南段（驻马店段）","驻马店","K1013+768","K1044+647",30.879,"泌阳站",1,"高发南阳分公司","南阳市区","南阳公司","已通车","非市界","跨地市"]
[20,"许广高速泌阳段","驻马店","K102+105","K169+800",67.695,"春水站、泌阳北站、泌阳东站",3,"高发驿阳分公司","驻马店市区","驻马店公司","已通车","市界","跨地市"]
[21,"新阳高速","驻马店","K000+495","K172+210",171.715,"栎城站、新蔡站、平舆站、汝南站、天中站、确山西站、竹沟站",7,"高发驿阳分公司","驻马店市区","驻马店公司","已通车","市界","非跨地市"]
[22,"大广高速周口段","周口","K1993+888","K2134+678",{"v":140.79,"d":"140.790"},"大新站、西华站、周口东站、周口港区站、项城西站、秣陵站",6,"高发周口分公司","周口市区","周口公司","已通车","市界","非跨地市"]
[23,"商南高速商周段（周口段）","周口",{"v":96493,"d":"K96+493"},{"v":164140,"d":"K164+140"},67.238,"四通站、淮阳站、羲皇故都站、周口北站、康楼站",5,"高发周口分公司","周口市区","周口公司","已通车","市界","非跨地市"]
[24,"连霍高速郑州段","郑州","K528+100",{"v":650000,"d":"K650+000"},{"v":121.86,"d":"121.860"},"中牟站、万三路站、东三环北站、迎宾路站、柳林站、花园路站、文化路站、惠济站、西三环北站、沟赵站、荥阳站、上街站、巩义东站、巩义站",14,"高发郑州分公司（含交发郑州4个站）","郑州市区","郑州公司","已通车","市界","跨地市"]
[25,"焦唐高速巩登段","郑州","K49+300","K92+567",42.267,"巩义南站、涉村站",2,"高发郑州分公司","郑州市区","郑州公司","已通车","市界","非跨地市"]
[26,"盐洛高速禹登段（郑州段）","郑州","K772+820","K794+638",21.818,"卢店站、宣化站",2,"高发禹登分公司","郑州登封","许昌公司","已通车","非市界","跨地市"]
[27,"焦唐高速登汝段（郑州段）","郑州","K98+997","K123+000",24.003,"告成站、白坪站",2,"高发禹登分公司","郑州登封","许昌公司","已通车","非市界","跨地市"]
[28,"郑云高速广武段","郑州","K0","K14+050",14.454,"广武站",1,"高发桃花峪分公司","郑州荥阳","焦作公司","已通车","非市界","非跨地市"]
[29,"郑新黄河大桥","郑州",{"v":686000,"d":"K686+000"},"K709+108",24.277,"郑新黄河大桥站",1,"高发郑新桥分公司","郑州市区","郑州公司","已通车","市界","非跨地市"]
[30,"垣渑高速山西段","运城","K0","K18+047",18.047,"亳城站",1,"高发三门峡分公司","三门峡市区","三门峡公司","已通车","非市界","非跨地市"]
[31,"盐洛高速许扶段","许昌","K651+659","K679+489",{"v":27.83,"d":"27.830"},"鄢陵南站",1,"高发禹登分公司","郑州登封","许昌公司","已通车","市界","非跨地市"]
[32,"盐洛高速禹登段（许昌段）","许昌","K746+258","K772+820",26.562,"苌庄站",1,"高发禹登分公司","郑州登封","许昌公司","已通车","市界","跨地市"]
[33,"京港澳高速驻信段（信阳段）","信阳",{"v":931610,"d":"K931+610"},"K1007+338",75.696,"信阳北站、平桥北站、信阳站、朱堂北站、灵山站、鸡公山站",6,"高发信阳分公司","信阳市区","信阳公司","已通车","市界","跨地市"]
[34,"沪陕高速叶信段","信阳","K764+000","K949+400",{"v":185.4,"d":"185.400"},"西九华山站、固始站、商城站、潢川站、光山站、仙居站、罗山站、洋河站、信阳新区站、信阳西站",10,"高发信阳分公司","信阳市区","信阳公司","已通车","市界","非跨地市"]
[35,"沪陕高速信南段（信阳段）","信阳","K949+400","K989+403",40.003,"查山站",1,"高发南阳分公司","南阳市区","信阳公司","已通车","市界","跨地市"]
[36,"大广高速息光段","信阳",{"v":2186805,"d":"K2186+805"},{"v":2252718,"d":"K2252+718"},{"v":66,"d":"66.000"},"白店站、息县站、寨河站",3,"高发潢淮分公司","信阳光山","信阳公司","已通车","市界","非跨地市"]
[37,"淮内高速淮息段","信阳",{"v":0,"d":"K0+000"},"K49+235",49.235,"淮滨站、小茴店站",2,"高发潢淮分公司","信阳光山","信阳公司","已通车","市界","非跨地市"]
[38,"阳新高速淮固段","信阳","K49+235","K115+821",66.586,"淮滨南站、淮固固始站",2,"高发潢淮分公司","信阳光山","信阳公司","已通车","市界","非跨地市"]
[39,"京港澳高速安新段（新乡段）","新乡","K568+960","K597+526",29.118,"卫辉站",1,"高发安新分公司","新乡市区","新乡公司","已通车","市界","跨地市"]
[40,"连霍高速商丘段","商丘",{"v":291000,"d":"K291+000"},"K467+610",{"v":176.61,"d":"176.610"},"芒砀山站、夏邑站、虞城站、商丘睢阳站、商丘站、宁陵站、民权站",7,"高发商丘分公司","商丘市区","商丘公司","已通车","市界","非跨地市"]
[41,"济广高速商亳荷段","商丘",{"v":343000,"d":"K343+000"},"K400+449",57.449,"双八站、商丘新区北站、商丘新区南站、商丘迎宾路站、木兰站",5,"高发商丘分公司","商丘市区","商丘公司","已通车","市界","非跨地市"]
[42,"商南高速商周段（商丘段）","商丘",{"v":28000,"d":"K28+000"},"K96+493",68.493,"毛堌堆站、柘城北站、柘城西站",3,"高发商丘分公司","商丘市区","商丘公司","已通车","市界","非跨地市"]
[43,"商南高速商丘二期段","商丘","K1+009",{"v":28000,"d":"K28+000"},26.991,"黄河故道站、商丘梁园站、古城站",3,"高发商丘分公司","商丘市区","商丘公司","已通车","市界","非跨地市"]
[44,"盐洛高速永城段","商丘",{"v":448000,"d":"K448+000"},"K493+936",45.936,"永城南站",1,"高发商丘分公司","商丘市区","商丘公司","已通车","市界","非跨地市"]
[45,"连霍高速义马段","三门峡","K734+700","K748+216",13.516,"义马站",1,"高发洛阳分公司","洛阳市区","三门峡公司","已通车","市界","跨地市"]
[46,"连霍高速三门峡段","三门峡",{"v":748216,"d":"K748+216"},{"v":901030,"d":"K901+030"},152.747,"渑池站、观音堂站、三门峡东站、三门峡西站、灵宝站、灵宝西站、豫灵站",7,"高发三门峡分公司","三门峡市区","三门峡公司","已通车","市界","非跨地市"]
[47,"垣渑高速河南段","三门峡","K20+730","K60+943",{"v":40.21,"d":"40.210"},"仙门山站、仰韶站",2,"高发三门峡分公司","三门峡市区","三门峡公司","已通车","市界","非跨地市"]
[48,"焦唐高速登汝段（平顶山段）","平顶山","K123","K157+674",34.674,"大峪站、汝州东站",2,"高发禹登分公司","郑州登封","许昌公司","已通车","非市界","跨地市"]
[49,"沪陕高速信南段（南阳东段）","南阳","K989+403","K1013+765",24.365,"桐柏毛集站",1,"高发南阳分公司","南阳市区","南阳公司","已通车","市界","跨地市"]
[50,"沪陕高速信南段（南阳西段）","南阳","K1044+647","1132+304",87.657,"唐河东站、唐河站、唐河西站、翟庄站",4,"高发南阳分公司","南阳市区","南阳公司","已通车","市界","跨地市"]
[51,"二广高速岭南段","南阳",{"v":1285249,"d":"K1285+249"},"k1359+548",74.299,"南召站、南召五朵山站、遮山站",3,"高发南阳分公司","南阳市区","南阳公司","已通车","市界","非跨地市"]
[52,"商南高速南阳绕城联络线","南阳",{"v":365557,"d":"K365+557"},{"v":389804,"d":"K389+804"},24.247,"独山站",1,"高发南阳分公司","南阳市区","南阳公司","已通车","市界","非跨地市"]
[53,"许广高速泌桐段","南阳","K169+800","K199+663",29.863,"桐柏朱庄站、桐柏东站",2,"高发驿阳分公司","驻马店市区","驻马店公司","已通车","非市界","跨地市"]
[54,"连霍高速洛阳段","洛阳",{"v":650000,"d":"K650+000"},"K734+700",{"v":84.74,"d":"84.740"},"偃师东站、偃师站、会盟站、洛阳东站、孟津站、洛阳站、新安站、新安西站",8,"高发洛阳分公司","洛阳市区","洛阳公司","已通车","市界","跨地市"]
[55,"二广高速汝鑫段","洛阳","K1194+804","K1221+584",{"v":27.19,"d":"27.190"},"汝阳站、刘店站",2,"高发洛阳分公司","洛阳市区","洛阳公司","已通车","市界","非跨地市"]
[56,"连霍高速开封段","开封","K467+610","K528+100",{"v":60.49,"d":"60.490"},"兰考站、开封东站、龙亭站、开封站",4,"高发开封分公司","开封市区","开封公司","已通车","市界","非跨地市"]
[57,"大广高速开通段","开封","K1929+660","K1993+888",64.228,"杜良站、陈留站、通许东站",3,"高发开封分公司","开封市区","开封公司","已通车","市界","非跨地市"]
[58,"郑云高速武云段","焦作","K14+050","K63+737",51.115,"云台山站、修武城区站、嘉应观站",3,"高发桃花峪分公司","郑州荥阳","焦作公司","已通车","市界","非跨地市"]
[59,"京港澳高速安新段（鹤壁段）","鹤壁",{"v":531612,"d":"K531+612"},{"v":568960,"d":"K568+960"},37.066,"鹤壁北站、鹤壁站、鹤壁南站",3,"高发安新分公司","新乡市区","鹤壁公司","已通车","市界","跨地市"]
[60,"京港澳高速安新段（安阳段）","安阳","K484+358","K531+342",46.984,"安阳北站、安阳站、安阳南站",3,"高发安新分公司","新乡市区","安阳公司","已通车","市界","跨地市"]
[61,"京港澳高速新乡至郑州段（新乡段）","新乡",{"v":597526,"d":"K597+526"},{"v":639000,"d":"K639+000"},41.474,"新乡站、原阳站",2,"交发郑州分公司","郑州","新乡公司","已通车","市界","跨地市"]
[62,"京港澳高速新乡至郑州段（郑州段）","郑州",{"v":639000,"d":"K639+000"},"K690+400",{"v":51.4,"d":"51.400"},"郑州新区站、圃田站、航海路站、南三环站、航空港区北站",5,"交发郑州分公司","郑州","郑州公司","已通车","市界","跨地市"]
[63,"晋新高速原阳至新庄段","新乡",{"v":105956,"d":"K105+956"},{"v":118716,"d":"K118+716"},{"v":12.76,"d":"12.760"},"平原新区东站",1,"交发郑州分公司","郑州","新乡公司","已通车","市界","非跨地市"]
[64,"郑州西南绕城段","郑州",{"v":0,"d":"K0+000"},"K52+020",{"v":52.02,"d":"52.020"},"莲花街站、科学大道站、豫龙站、中原西路站、陇海西路站、樱桃沟站、大学南路站、十八里河站、轩辕故里站、东三环南站",10,"交发郑州分公司","郑州","郑州公司","已通车","市界","非跨地市"]
[65,"大广高速濮阳段","濮阳","K1762+000","K1835+593",73.595,"南乐站、清丰站、濮阳南站",3,"交发濮阳分公司","濮阳","濮阳公司","已通车","市界","非跨地市"]
[66,"大广高速安阳段","安阳","K1835+593","K1877+636",42.112,"滑县站、慈周寨站",2,"交发濮阳分公司","濮阳","安阳公司","已通车","市界","非跨地市"]
[67,"大广高速新乡段","新乡","K1877+636","1915+850",38.214,"长垣站、封丘站",2,"交发濮阳分公司","濮阳","新乡公司","已通车","市界","非跨地市"]
[68,"台辉高速濮鹤段（濮阳段）","濮阳","K98+000","K99+340",{"v":1.34,"d":"1.340"},"濮阳站",1,"交发濮阳分公司","濮阳","濮阳公司","已通车","市界","跨地市"]
[69,"台辉高速濮鹤段（安阳段）","安阳","K99+340","K116+064",16.724,"内黄南站",1,"交发濮阳分公司","濮阳","鹤壁公司","已通车","非市界","跨地市"]
[70,"台辉高速濮鹤段（鹤壁段）","鹤壁","K116+064","K156+353",40.289,"浚县东站、浚县西站",2,"交发濮阳分公司","濮阳","鹤壁公司","已通车","市界","跨地市"]
[71,"德上高速范县段","濮阳","K212+028","K231+633",19.605,"范县东站",1,"交发濮阳分公司","濮阳","濮阳公司","已通车","市界","非跨地市"]
[72,"南林高速安南段（濮阳段）","濮阳","K35+000","K45+979",11.215,null,0,"交发濮阳分公司","濮阳","濮阳公司","已通车","市界","跨地市"]
[73,"南林高速安南段（安阳段）","安阳","K45+979","K97+522",53.185,"内黄站、安阳东站",2,"交发濮阳分公司","濮阳","安阳公司","已通车","市界","跨地市"]
[74,"南林高速豫鲁界至南乐段","濮阳","K1+501","35+000",33.499,"南乐东站、南乐南站",2,"交发濮阳分公司","濮阳","濮阳公司","已通车","市界","非跨地市"]
[75,"台辉高速范县至豫鲁界段","濮阳",{"v":0,"d":"K0+000"},"K37+551",37.685,"台前站、高码头站",2,"交发濮阳分公司","濮阳","濮阳公司","已通车","市界","非跨地市"]
[76,"盐洛高速少洛段（郑州段）","郑州","K796+834","K831+500",34.666,"登封东站、登封站、少林站、君召站",4,"交发少洛分公司","郑州","郑州公司","已通车","市界","跨地市"]
[77,"盐洛高速少洛段（洛阳段）","洛阳",{"v":831500,"d":"K831+500"},"K855+595",24.094,"吕店大谷关站",1,"交发少洛分公司","郑州","洛阳公司","已通车","市界","跨地市"]
[78,"宁洛高速西南绕城段","洛阳","K719+324","K755+368",{"v":36.0440000000001,"d":"36.044"},"伊阙站、甘泉河站、洛阳高新区站、洛阳涧西站",4,"交发少洛分公司","郑州","洛阳公司","已通车","市界","非跨地市"]
[79,"菏宝高速获新段","新乡","K152+155",{"v":202512,"d":"K202+512"},50.285,"新乡东站、新乡西站、辉县站、获嘉站",4,"交发少洛分公司","郑州","新乡公司","已通车","市界","非跨地市"]
[80,"菏宝高速焦修段","焦作",{"v":202512,"d":"K202+512"},{"v":231937,"d":"K231+937"},28.481,"修武东站、修武站、焦作东站",3,"交发少洛分公司","郑州","焦作公司","已通车","市界","非跨地市"]
[81,"菏宝高速济焦段（焦作段）","焦作",{"v":231937,"d":"K231+937"},{"v":281433,"d":"K281+433"},49.587,"沁阳站、柏香站",2,"交发少洛分公司","郑州","焦作公司","已通车","市界","跨地市"]
[82,"菏宝高速济焦段（济源段）","济源",{"v":281433,"d":"K281+433"},"K287+565",6.173,"济源东站",1,"交发少洛分公司","郑州","济源公司","已通车",{"$f":"IF(LEFT(K85,LEN(K85)-2)=C85,\"市界\",\"非市界\")","v":"市界"},"跨地市"]
[83,"二广高速济洛段（济源段）","济源","K1102+555","1112+455",{"v":9.9,"d":"9.900"},null,0,"交发少洛分公司","郑州","济源公司","已通车","市界","跨地市"]
[84,"二广高速济洛段（焦作段）","焦作","K1112+455","1123+755",{"v":11.3,"d":"11.300"},null,0,"交发少洛分公司","郑州","济源公司","已通车","非市界","跨地市"]
[85,"二广高速济洛段（洛阳段）","洛阳","K1123+755","K1148+643",{"v":24.87,"d":"24.870"},"吉利孟州站",1,"交发少洛分公司","郑州","洛阳公司","已通车","市界","跨地市"]
[86,"菏宝高速济邵段","济源","K294+472","K354+243",59.824,"济源南站、王屋山站、邵原站",3,"交发少洛分公司","郑州","济源公司","已通车","市界","非跨地市"]
[87,"济洛高速济洛西段（济源段）","济源",{"v":18964.7,"d":"K18+965"},{"v":36400,"d":"K36+400"},{"v":18.9,"d":"18.900"},"小浪底北站",1,"交发少洛分公司","郑州","济源公司","已通车","市界","跨地市"]
[88,"济洛高速济洛西段（洛阳段）","洛阳",{"v":36400,"d":"K36+400"},{"v":60183.5,"d":"K60+184"},23.483,"小浪底南站、孟津西站",2,"交发少洛分公司","郑州","洛阳公司","已通车","市界","跨地市"]
[89,"济阳高速济源段","济源",{"v":0,"d":"K0+000"},{"v":18964.7,"d":"K18+965"},19.512,null,0,"交发少洛分公司","郑州","济源公司","已通车","市界","非跨地市"]
[90,"沪陕高速南阳至内乡段","南阳","K1132+304","1200+524",{"v":68.9,"d":"68.900"},"南阳卧龙站、镇平站、晁陂站、内乡站",4,"交发南阳分公司","南阳","南阳公司","已通车","市界","非跨地市"]
[91,"沪陕高速内乡至豫陕界段","南阳","K1200+524","1282+821",{"v":82.3,"d":"82.300"},"丹水站、西峡站、丁河站、西坪站",4,"交发南阳分公司","南阳","南阳公司","已通车","市界","非跨地市"]
[92,"呼北高速卢西段（南阳段）","南阳","K1007+029","1042+115",{"v":32.99,"d":"32.990"},"寨根站",1,"交发南阳分公司","南阳","南阳公司","已通车","市界","非跨地市"]
[93,"呼北高速西寺段","南阳","K1042+115",{"v":1079625,"d":"K1079+625"},{"v":37.5,"d":"37.500"},"西簧站、寺湾站",2,"交发南阳分公司","南阳","南阳公司","已通车","市界","非跨地市"]
[94,"洛栾高速","洛阳","K0+000",{"v":129228,"d":"K129+228"},{"v":130,"d":"130.000"},"洛龙站、伊川西站、嵩县产业集聚区站、陆浑站、嵩县站、旧县站、九龙山站、重渡沟站、栾川老君山站",9,"交发洛阳分公司","洛阳","洛阳公司","已通车","市界","非跨地市"]
[95,"洛卢高速洛阳段","洛阳","K0+000","K123+895",124.153,"周山站、宜阳站、韩城站、洛宁站、洛宁西站、长水站、上戈站",7,"交发洛阳分公司","洛阳","洛阳公司","已通车","市界","非跨地市"]
[96,"郑西高速尧栾段（洛阳段）","洛阳","K206+387","257+114",50.727,"木札岭站、白云山站、龙屿湾站",3,"交发洛阳分公司","洛阳","洛阳公司","已通车","市界","跨地市"]
[97,"郑西高速尧栾段（平顶山段）","平顶山","K179+287","206+387",28.014,"尧山西站",1,"交发洛阳分公司","洛阳","洛阳公司","已通车","非市界","跨地市"]
[98,"郑西高速栾双段（洛阳段）","洛阳","K120+00","K128+866",8.866,null,0,"交发洛阳分公司","洛阳","南阳公司","已通车","非市界","跨地市"]
[99,"郑西高速栾双段（南阳段）","南阳","K128+866","K168+357",40.493,"老界岭站、老君洞站、双龙站",3,"交发洛阳分公司","洛阳","南阳公司","已通车","市界","跨地市"]
[100,"呼北高速三门峡段","三门峡","K871+832","K1007+029",137.292,"灵宝东站、豫西大峡谷站、卢氏站、玉皇山站、朱阳关站",5,"交发三门峡分公司","三门峡","三门峡公司","已通车","市界","非跨地市"]
[101,"三门峡黄河公铁两用桥","三门峡","k0+881","k3+063",3.048,"三门峡站",1,"交发三门峡分公司","三门峡","三门峡公司","已通车","市界","非跨地市"]
[102,"洛卢高速三门峡段","三门峡","k123+895","k137+186",13.291,null,0,"交发三门峡分公司","三门峡","三门峡公司","已通车","市界","非跨地市"]
[103,"安罗高速机西二期（郑州段）","郑州",{"v":0,"d":"K0+000"},"K40+752",40.752,"官渡站、中牟东站、韩寺站、机场东站",4,"交发航空港分公司","航空港","开封公司","已通车","非市界","跨地市"]
[104,"安罗高速机西二期（开封段）","开封","K40+752","K45+102",{"v":4.35,"d":"4.350"},null,null,"交发航空港分公司","航空港","开封公司","已通车","市界","跨地市"]
[105,"安罗高速机西一期（开封段）","开封","K45+100",{"v":76842,"d":"K76+842"},{"v":31.79,"d":"31.790"},"尉氏西站",1,"交发航空港分公司","航空港","开封公司","已通车","市界","跨地市"]
[106,"安罗高速机西一期（许昌段）","许昌",{"v":76842,"d":"K76+842"},"K92+240",{"v":15.35,"d":"15.350"},"鄢陵彭店站",1,"交发航空港分公司","航空港","周口公司","已通车","非市界","跨地市"]
[107,"安罗高速机西一期（周口段）","周口","K92+240",{"v":151404,"d":"K151+404"},59.162,"扶沟西站、西华北站、西华西站、周口西站",4,"交发航空港分公司","航空港","周口公司","已通车","市界","跨地市"]
[108,"商南高速周南段（周口段）","周口",{"v":164140,"d":"K164+140"},"K180+518",17.784,"商水站",1,"宛龙公司","平顶山舞钢","平顶山公司","已通车","非市界","跨地市"]
[109,"商南高速周南段（驻马店段）","驻马店","K180+518","K268+843",{"v":87.2,"d":"87.200"},"小岳寺站、上蔡北站、上蔡西站、遂平北站、遂平西站、 嵖岈山站",6,"宛龙公司","平顶山舞钢","平顶山公司","已通车","非市界","跨地市"]
[110,"商南高速周南段（平顶山段）","平顶山","K268+843","K292+529",{"v":23.68,"d":"23.680"},"尹集站、杨庄站",2,"宛龙公司","平顶山舞钢","平顶山公司","已通车","市界","跨地市"]
[111,"商南高速周南段（南阳段）","南阳","K292+529",{"v":359379,"d":"K359+379"},{"v":66.85,"d":"66.850"},"小史店站、下洼站、社旗站、红泥湾站",4,"宛龙公司","平顶山舞钢","平顶山公司","已通车","非市界","跨地市"]
[112,"淮内高速息邢段（信阳东段）","信阳","K59+415","K86+400",26.985,"杨店站、息县北站",2,"淮信公司","信阳市区","信阳公司","已通车","市界","跨地市"]
[113,"淮内高速息邢段（驻马店东段）","驻马店","K86+400","K138+000",{"v":51.6,"d":"51.600"},"正阳南站、正阳站、双河站",3,"淮信公司","信阳市区","信阳公司","已通车","非市界","跨地市"]
[114,"淮内高速息邢段（信阳中段）","信阳","K138+000","K142+000",{"v":4,"d":"4.000"},"明港机场南站、明港北站",2,"淮信公司","信阳市区","信阳公司","已通车","市界","跨地市"]
[115,"淮内高速息邢段（驻马店西段）","驻马店","K142+OOO","K149+000",{"v":7,"d":"7.000"},null,0,"淮信公司","信阳市区","信阳公司","已通车","非市界","跨地市"]
[116,"淮内高速息邢段（信阳西段）","信阳","K149+000","K158+165",9.165,"邢集站",1,"淮信公司","信阳市区","信阳公司","已通车","市界","跨地市"]
[117,"濮卫高速滑卫段（新乡段）","新乡","K27+080",{"v":58940,"d":"K58+940"},31.643,"延津北站、卫辉东站、望京楼站",3,"濮卫项目公司",null,"新乡公司",2022,"市界","跨地市"]
[118,"濮卫高速滑卫段（安阳段）","安阳",{"v":0,"d":"K0+000"},{"v":27174,"d":"K27+174"},27.174,"滑县留固站、滑县物流港南站、滑县南站",3,"濮卫项目公司",null,"安阳公司",2022,"市界","跨地市"]
[119,"鹤辉高速鹤壁段","鹤壁","K0+000","K20+356",{"v":20.35,"d":"20.350"},"朝歌站",1,"鹤新项目公司",null,"鹤壁公司",2022,"市界","跨地市"]
[120,"鹤辉高速新乡东段","新乡","K20+356","K29+559",{"v":11.52,"d":"11.520"},"万仙山站",1,"鹤新项目公司",null,"鹤壁公司",2022,"非市界","跨地市"]
[121,"鹤辉高速安阳段","安阳","K29+559","K49+700",20.145,"林州万泉湖站",1,"鹤新项目公司",null,"鹤壁公司",2022,"非市界","跨地市"]
[122,"鹤辉高速新乡西段","新乡","K49+700","K61+220",9.198,"狮豹头站",1,"鹤新项目公司",null,"鹤壁公司",2022,"非市界","跨地市"]
[123,"沿太行高速新乡段","新乡","K0+028","K29+568",29.541,"八里沟站、宝泉站",2,"安济项目公司",null,"焦作公司",2022,"非市界","非跨地市"]
[124,"濮卫高速濮阳段","濮阳","K1+099","K40+070",{"v":39.7,"d":"39.700"},"文留站、鲁河站、胡状站、濮水站、支书学院站、新习站",6,"濮卫项目公司",null,"濮阳公司",2022,"市界","非跨地市"]
[125,"阳新高速濮阳段一期","濮阳","K0+000","K33+916",33.916,"濮阳东站、白堽站",2,"濮新项目公司",null,"濮阳公司",2022,"市界","非跨地市"]
[126,"渑淅高速渑洛段（三门峡段）","三门峡",{"v":40081,"d":"K40+081"},{"v":55685,"d":"K55+685"},15.604,"渑池东站、渑池南站",2,"新融项目公司",null,"三门峡公司",2022,"市界","跨地市"]
[127,"连霍呼北高速联络线","三门峡","K0+000","K27+407",27.407,"灵宝西南站、灵宝南站",2,"连霍呼北联络线项目公司",null,"三门峡公司",2022,"市界","非跨地市"]
[128,"渑淅高速渑洛段（洛阳段）","洛阳",{"v":55685,"d":"K55+685"},{"v":80836,"d":"K80+836"},25.151,"洛宁北站、洛宁东站",2,"新融项目公司",null,"洛阳公司",2022,"市界","跨地市"]
[129,"郑西高速双西段","南阳","K128+100","K141+500",{"v":13.4,"d":"13.400"},"西峡北站",1,"尧栾西项目公司",null,"南阳公司",2022,"市界","非跨地市"]
[130,"渑淅高速西淅段","南阳","K0+000","K52+020",52.761,"西峡南站、淅川站、淅川南站、马蹬站",4,"西淅项目公司",null,"南阳公司",2022,"市界","非跨地市"]
[131,"安罗高速上罗段（驻马店段）","驻马店","K0+000","K127+940",{"v":127.89,"d":"127.890"},"东洪站、上蔡东站、五龙站、宿鸭湖站、梁祝故里服务区站、汝南东站、老王岗站、梁祝故里站、正阳北服务区站、正阳东站、铜钟站",11,"安罗项目公司",null,"驻马店公司",2022,"市界","跨地市"]
[132,"安罗高速上罗段（信阳段）","信阳","K127+940","K149+160",21.205,"息县淮河新区站、罗山北服务区站、罗山北站",3,"安罗项目公司",null,"信阳公司",2022,"市界","跨地市"]
[133,"许信高速驻马店至信阳段（驻马店段）","驻马店","K74+850","K155+971",81.331,"嵖岈山景区站、文城站、驻马店西站、蚁蜂站、老乐山景区站、薄山湖站",6,"许信项目公司",null,"驻马店公司",2022]
[134,"许信高速驻马店至信阳段（信阳段）","信阳","K155+971","K171+933",15.803,null,0,"许信项目公司",null,"信阳公司",2022,{"$f":"IF(LEFT(K137,LEN(K137)-2)=C137,\"市界\",\"非市界\")","v":"市界"},"跨地市"]
[135,"阳新高速黄河特大桥段","濮阳",null,null,8.127,null,0,"濮泽项目公司",null,"濮阳公司",2023,"市界","非跨地市"]
[136,"许信高速许昌至驻马店段（许昌段）","许昌","K0+000","K8+500",{"v":8.5,"d":"8.500"},null,0,"许信项目公司",null,"漯河公司",2023,"非市界","跨地市"]
[137,"许信高速许昌至驻马店段（漯河段）","漯河","K8+500","K56+150",47.812,"临颍西站、漯河西站、问十站",3,"许信项目公司",null,"漯河公司",2023,"市界","跨地市"]
[138,"许信高速许昌至驻马店段（驻马店段）","驻马店","K56+150","K74+850",18.723,"权寨站、西平西站",2,"许信项目公司",null,"驻马店公司",2023,"市界","跨地市"]
[139,"栾卢高速洛阳段","洛阳",null,null,{"v":51.29,"d":"51.290"},"鸡冠洞站、栾川西站、天河大峡谷站",3,"栾卢项目公司",null,"洛阳公司",2023,"市界","跨地市"]
[140,"栾卢高速三门峡段","三门峡",null,null,{"v":24.02,"d":"24.020"},"熊耳山收费、卢氏南站",2,"栾卢项目公司",null,"三门峡公司",2023,"市界","跨地市"]
[141,"阳新高速公路宁陵至沈丘段（商丘段）","商丘",{"$nulls":3},"三丈寺站、睢县东站、河堤站、柘城西站",null,"中铁濮新（河南）高速公路有限公司",null,"——","央企控股","——","——"]
[142,"阳新高速公路宁陵至沈丘段（周口段）","周口",{"$nulls":3},"试量站、任集站、郸城西站、郸城南站、卞路口站、周营站",null,"中铁濮新（河南）高速公路有限公司",null,"——","央企控股","——","——"]
[143,"淮内高速豫皖省界至淮滨段","信阳",null,null,14.676,"淮滨北站",1,"固淮项目公司",null,"信阳公司",2024,{"$f":"IF(LEFT(K146,LEN(K146)-2)=C146,\"市界\",\"非市界\")","v":"市界"},"非跨地市"]
[144,"沿大别山高速明港至鸡公山段","信阳",null,null,96.461,"出山湖站、吴家店站、董家河站、浉河港站、鸡公山站、盛龙潭服务区站、南湾服务区站、龙潭文新停车区站",8,"大别山明鸡项目公司",null,"信阳公司",2024,"市界","非跨地市"]
[145,"沿大别山高速鸡公山至商城（豫皖省界）段","信阳",null,null,{"v":123.32,"d":"123.320"},"彭新站、殷棚站、五岳站、吴陈河站、白雀园站、余集站",6,"商罗项目公司",null,"信阳公司",2024,"市界","非跨地市"]
[146,"阳新高速商城至豫鄂省界段一期","信阳",null,null,37.357,"李集站、金刚台站、汪岗站",3,"固商项目公司",null,"信阳公司",2025,"市界","非跨地市"]
[147,"阳新高速豫鲁省界至宁陵段","商丘",null,null,31.995,"庄周站、民权东站",2,"民沈项目公司",null,"商丘公司",2025,"市界","跨地市"]
[148,"阳新高速沈丘至豫皖省界段","周口",null,null,24.918,"赵德营站、邢庄站",2,"沈皖项目公司",null,"周口公司",2024,"市界","非跨地市"]
[149,"焦唐高速汝州至方城段（平顶山段）","平顶山",null,null,68.964,"前营站、张八桥站、鲁山站、张良站、常村站、沙河服务区站",6,"平宛项目公司",null,"平顶山公司",2025,"市界","跨地市"]
[150,"焦唐高速汝州至方城段（南阳段）","南阳",null,null,31.738,"拐河站、七峰山服务区站",2,"平宛项目公司",null,"平顶山公司",2025,"非市界","跨地市"]
[151,"焦平高速焦作至荥阳段（郑州段）","郑州",null,null,6.851,"汜水站",1,"焦郑项目公司",null,"焦作公司",2025,"非市界","跨地市"]
[152,"焦平高速焦作至荥阳段（焦作段）","焦作",null,null,28.415,"宁郭站、小董站、西陶站、陈家沟站",4,"焦郑项目公司",null,"焦作公司",2025,"市界","跨地市"]
[153,"焦平高速新密至襄城段（郑州段）","郑州",null,null,11.163,"平陌站",1,"郑平项目公司",null,"郑州公司",2025,"市界","跨地市"]
[154,"焦平高速新密至襄城段（许昌段）","许昌",null,null,62.969,"顺店站、神垕站、王洛站、库庄站",4,"郑平项目公司",null,"许昌公司",2025,"市界","跨地市"]
[155,"焦平高速新密至襄城段（平顶山段）","平顶山",null,null,21.398,"安良站、长桥站",2,"郑平项目公司",null,"许昌公司",2025,"非市界","跨地市"]
[156,"周平高速临颍至襄城段（漯河段）","漯河",null,null,29.345,"皇帝庙站、台陈站、胡桥站",3,"周平项目公司",null,"漯河公司",2025,"市界","跨地市"]
[157,"周平高速临颍至襄城段（许昌段）","许昌",null,null,14.846,"范湖站",1,"周平项目公司",null,"许昌公司",2025,"市界","跨地市"]
[158,"兰考至沈丘高速兰考至太康段（开封段）","开封",null,null,66.214,"兰考东站、仪封站、西寨站、杞县东站、宗店站、板木站",6,"兰太项目公司",null,"开封公司",2025,"市界","跨地市"]
[159,"兰考至沈丘高速兰考至太康段（商丘段）","商丘",null,null,9.192,"双塔站",1,"兰太项目公司",null,"开封公司",2025,"非市界","跨地市"]
[160,"兰考至沈丘高速兰考至太康段（周口段）","周口",null,null,36.695,"王集站、太康东站",2,"兰太项目公司",null,"周口公司",2025,"市界","跨地市"]
[161,"沈丘至卢氏高速沈丘至遂平段（周口段）","周口",null,null,{"v":46.12,"d":"46.120"},"老城站、李老庄站、新桥站、孙店站",4,"沈遂项目公司",null,"周口公司",2025,"市界","跨地市"]
[162,"沈丘至卢氏高速沈丘至遂平段（驻马店段）","驻马店",null,null,59.842,"和店站、塔桥站、上蔡南站、无量寺站",4,"沈遂项目公司",null,"驻马店公司",2025,"市界","跨地市"]
[163,"沿黄高速民权至兰考段（商丘段）","商丘",null,null,26.561,"褚庙站、王桥站",2,"民兰项目公司",null,"商丘公司",2025,"市界","跨地市"]
[164,"沿黄高速民权至兰考段（开封段）","开封",null,null,32.252,"考城南站、考城西站、葡萄架站",3,"民兰项目公司",null,"开封公司",2025,"市界","跨地市"]
[165,"信阳至随州（豫鄂界）高速公路","信阳",null,null,8.254,"谭家河站",1,"信随项目公司",null,"信阳公司",2025,"市界","非跨地市"]
[166,"固始至豫皖省界高速公路","信阳",null,null,38.614,"陈集站、蒋集天明站、洪埠站",3,"固淮项目公司",null,"信阳公司",2025,"市界","非跨地市"]
[167,"郑州至洛阳高速（郑州段）","郑州",null,null,65.681,"荥泽大道站、万山湖站、万山站、长寿山站、西村站、鲁庄站",6,"郑洛项目公司",null,"中原高速",2025,"非市界","跨地市"]
[168,"郑州至洛阳高速（洛阳段）","洛阳",null,null,33.345,"缑氏站、偃师南站、伊滨东站、龙门东站",4,"郑洛项目公司",null,"中原高速",2025,"非市界","跨地市"]
[169,"安阳至新乡高速鹤壁至新乡段（鹤壁段）","鹤壁",null,null,13.835,"北阳站",1,"郑安项目公司",null,"鹤壁公司",2025,"市界","跨地市"]
[170,"安阳至新乡高速鹤壁至新乡段（新乡段）","新乡",null,null,38.461,"安都站、唐庄站、常村站、辉县南站",4,"郑安项目公司",null,"新乡公司",2025,"市界","跨地市"]
[171,"郑州至辉县高速（新乡段）","新乡",null,null,{"v":53.6,"d":"53.600"},"合河站、大召营站、太山站、亢村站、祝楼站、夹堤站",6,"郑安项目公司",null,"新乡公司",2026,"市界","跨地市"]
[172,"郑州至辉县高速（焦作段）","焦作",null,null,{"v":0.6,"d":"0.600"},null,0,"郑安项目公司",null,"新乡公司",2026,"非市界","跨地市"]
[173,"郑州至辉县高速（郑州段）","郑州",null,null,{"v":4.68,"d":"4.680"},null,0,"郑安项目公司",null,"新乡公司",2026,"非市界","跨地市"]
[174,"沿太行高速安阳段","安阳",null,null,{"v":59.07,"d":"59.070"},"桂林站、任村站、林州南站、临淇站",4,"豫冀项目公司",null,"安阳公司",2024,"市界","非跨地市"]
[175,"安罗高速原阳至郑州段（郑州段）","郑州",null,null,11.975,"雁鸣湖站",1,"黄河项目公司",null,"开封公司",2025,"非市界","跨地市"]
[176,"安罗高速原阳至郑州段（新乡段）","新乡",null,null,{"v":9.68,"d":"9.680"},null,0,"黄河项目公司",null,"新乡公司",2025,"市界","跨地市"]
[177,"安罗高速豫冀省界至原阳段（安阳段）","安阳",null,null,87.205,"北郭站、辛村站、内黄西服务区设站、双安站、枣村站、老店服务区站、半坡店站",7,"京武项目公司",null,"安阳公司",2024,"市界","跨地市"]
[178,"安罗高速豫冀省界至原阳段（鹤壁段）","鹤壁",null,null,18.605,"浚县站",1,"京武项目公司",null,"安阳公司",2024,"非市界","跨地市"]
[179,"安罗高速豫冀省界至原阳段（新乡段）","新乡",null,null,38.549,"魏邱站、延津东站、齐街站",3,"京武项目公司",null,"新乡公司",2024,"市界","跨地市"]
[180,"沿太行高速焦作至济源段（焦作段）","焦作",null,null,38.885,"博爱北站、丹河站、神农山站",3,"焦源项目公司",null,"焦作公司",2024,"市界","跨地市"]
[181,"沿太行高速焦作至济源段（济源段）","济源",null,null,13.339,null,0,"焦源项目公司",null,"济源公司",2024,"市界","跨地市"]
[182,"安罗高速罗山至豫鄂省界段","信阳",null,null,44.109,"庙仙站、莽张站、周党站、定远站",4,"豫申项目公司",null,"信阳公司",2024,"市界","非跨地市"]
[183,"沿黄高速武陟至济源段（新乡段）","新乡",null,null,4.843,null,0,"沿黄项目公司",null,"焦作公司",2025,"非市界","跨地市"]
[184,"沿黄高速武陟至济源段（焦作段）","焦作",null,null,92.003,"詹店互通站、武陟南互通站、北郭互通站、西陶互通站、武德互通站、番田互通站、孟州北互通站，嘉应观服务区站、温县北服务区站",9,"沿黄项目公司",null,"焦作公司",2025,"市界","跨地市"]
[185,"沿黄高速武陟至济源段（济源段）","济源",null,null,3.293,null,0,"沿黄项目公司",null,"焦作公司",2025,"非市界","跨地市"]
[186,"卢氏至洛南（豫陕省界）高速","三门峡",null,null,45.682,"双龙湾站、徐家湾站",2,"卢华项目公司",null,"三门峡公司",2025,"市界","非跨地市"]
[187,"渑淅高速淅川至豫鄂省界段","南阳",null,null,25.438,"大观苑站、仓房站",2,"豫淅项目公司",null,"南阳公司",2025,"市界","非跨地市"]
[188,"济源至新安高速公路（济源段）","济源",null,null,{"v":13.56,"d":"13.560"},"邵原互通站、黄河三峡服务区站",2,"济新项目公司",null,"济源公司",2025,"市界","跨地市"]
[189,"济源至新安高速公路（洛阳段）","洛阳",null,null,32.846,"黛眉山互通站、万山湖服务区站、青要山互通站",3,"济新项目公司",null,"洛阳公司",2025,"市界","跨地市"]
[190,"济源至新安高速公路（三门峡）","三门峡",null,null,1.555,null,0,"济新项目公司",null,"洛阳公司",2025,"非市界","跨地市"]
[191,"焦平高速荥阳至新密段","郑州",null,null,45.845,"高山站、米河站、米南村站、环翠峪站、溱水路站、牛店站",6,"荥密项目公司",null,"郑州公司",2025,"市界","非跨地市"]
[192,"郑州至南阳高速郑州至许昌段（郑州段）","郑州",null,null,38.671,"十八里河主线站、南龙湖站、郭店站、郑州南部新城站、黄帝故里站、新郑南站",6,"郑许项目公司",null,"郑州公司",2025,"市界","跨地市"]
[193,"郑州至南阳高速郑州至许昌段（许昌段）","许昌",null,null,25.652,"清潩河站、和尚桥站、桂村站",3,"郑许项目公司",null,"许昌公司",2025,"市界","跨地市"]
[194,"许昌市绕城高速公路","许昌",null,null,{"v":53.49,"d":"53.490"},"石象站、文峰站、坡胡站、古城站",4,"许魏绕城项目公司",null,"许昌公司",2025,"市界","非跨地市"]
[195,"沁阳至伊川高速公路（焦作段）","焦作",null,null,25.161,"崇义站、南庄站",2,"沁伊项目公司",null,"焦作公司",2025,"市界","跨地市"]
[196,"沁阳至伊川高速公路（郑州段）","郑州",null,null,14.812,"康店站、回郭站",2,"沁伊项目公司",null,"洛阳公司",2025,"非市界","跨地市"]
[197,"沁阳至伊川高速公路（洛阳段）","洛阳",null,null,59.014,"华夏路站、龙少路站、江左站、茹店站",4,"沁伊项目公司",null,"洛阳公司",2025,"市界","跨地市"]
[198,"安阳至新乡高速安阳至鹤壁段（安阳段）","安阳",null,null,10.182,"龙泉站",1,"泽畅项目公司",null,"鹤壁公司",2025,"非市界","跨地市"]
[199,"安阳至新乡高速安阳至鹤壁段（鹤壁段）","鹤壁",null,null,44.306,"五岩山站、淇滨西站、庙口站",3,"泽畅项目公司",null,"鹤壁公司",2025,"市界","跨地市"]
[200,"濮阳至聊城（豫鲁界）高速公路濮阳段","濮阳",null,null,{"v":36.14,"d":"36.140"},"张果屯站、仙庄站、清丰东站",3,"濮鲁项目公司",null,"濮阳公司",2025,"市界","非跨地市"]
[201,"叶县至鲁山高速公路","平顶山",null,null,67.403,"叶县南站、任店站、张官营站、鲁山南站、鲁山机场站",5,"叶鲁项目公司",null,"平顶山公司",2025,"市界","非跨地市"]
[202,"沿太行山高速西延段","济源",null,null,33.955,"玉川站、克井站、九里沟站、济源西站",4,"沿太行项目公司",null,"济源公司",2025,"市界","非跨地市"]
[203,"南阳至邓州高速公路","南阳",null,null,66.539,"彭营站、穰东站、邓州东站、邓州北站、习营站",5,"南邓项目公司",null,"南阳公司",2025,"市界","非跨地市"]
[204,"长垣至修武高速公路封丘至修武段（新乡段）","新乡",null,null,88.392,"封丘北站、阳阿站、七里营站、延津南站、原阳北站、中和站、应举服务区站、七里营服务区站",8,"平原项目公司",null,"新乡公司",2025,"市界","跨地市"]
[205,"长垣至修武高速公路封丘至修武段（焦作段）","焦作",null,null,1.806,null,0,"平原项目公司",null,"新乡公司",2025,"非市界","跨地市"]
[206,"沿太行高速公路焦作段","焦作",null,null,{"v":40.26,"d":"40.260"},"云宝站、七贤站、马村站、焦作北站",4,"未成立",null,"焦作公司",2025,"市界","非跨地市"]
[207,"阳新高速商城至豫鄂省界段二期","信阳",null,null,{"v":37,"d":"37.000"},"达权店站、黄柏山服务区站",2,"商麻项目公司",null,"信阳公司",2025,{"$f":"IF(LEFT(K210,LEN(K210)-2)=C210,\"市界\",\"非市界\")","v":"市界"}]